bitfinex/quotes_ETHUSD_20250525
["timestamp","ask_amount","ask_price","bid_price","bid_amount"]
[1748165473249,3.75887743,2480.3,2480.2,8.688]
[1748165473448,3.75887743,2480.3,2480.2,13.235]
[1748165473975,11.75887743,2480.3,2480.2,13.235]
[1748165474474,15.78187743,2480.3,2480.2,13.235]
[1748165476578,7.78187743,2480.3,2480.2,13.235]
[1748165477071,17.91187743,2480.3,2480.2,13.235]
[1748165483261,13.88887743,2480.3,2480.2,13.235]
[1748165483478,17.91187743,2480.3,2480.2,13.235]
[1748165484066,28.32687743,2480.3,2480.2,13.235]
[1748165484678,28.53687886,2480.3,2480.2,13.235]
[1748165485956,28.53687886,2480.3,2480.2,8.688]
[1748165486156,15.9932,2480.0,2479.9,4.548]
[1748165486406,11.7602,2479.8,2479.7,4.548]
[1748165486700,19.52751006,2479.8,2479.7,4.548]
[1748165486903,17.11251006,2479.8,2479.7,4.548]
[1748165487385,13.08951006,2479.8,2478.9,8.691]
[1748165487603,0.55,2479.6,2479.0,4.548]
[1748165487789,0.55,2479.4,2479.0,4.548]
[1748165487952,0.55,2479.2,2479.0,4.548]
[1748165488148,4.573,2479.1,2479.0,4.548]
[1748165490304,10.13,2479.2,2479.0,4.8592]
[1748165490506,10.13,2479.6,2479.1,0.3112]
[1748165490651,4.024,2479.5,2479.1,0.3112]
[1748165493863,0.55,2479.4,2479.2,4.548]
[1748165494195,0.55,2479.4,2479.1,0.3112]
[1748165494196,0.55,2479.2,2478.9,8.691]
[1748165494394,4.62442891,2479.1,2479.0,4.548]
[1748165494765,4.574,2479.1,2479.0,4.548]
[1748165496097,15.56272907,2479.1,2479.0,4.548]
[1748165496397,17.81867403,2479.1,2479.0,4.548]
[1748165496955,17.3855914,2479.1,2479.0,4.548]
[1748165497159,15.07921737,2479.1,2479.0,4.548]
[1748165497586,0.37521737,2479.1,2479.0,4.548]
[1748165497788,4.39921737,2479.1,2479.0,4.548]
[1748165498105,4.574,2479.1,2479.0,4.548]
[1748165498275,0.8083,2479.5,2479.0,4.548]
[1748165498599,0.55,2479.3,2479.0,4.548]
[1748165498775,0.55,2479.1,2479.0,4.548]
[1748165500703,0.55,2479.3,2479.0,4.548]
[1748165500864,0.55,2479.1,2479.0,4.548]
[1748165501205,0.55,2479.4,2479.1,0.3112]
[1748165501364,0.375467,2479.6,2479.1,0.3112]
[1748165501569,4.024,2479.5,2479.1,0.3112]
[1748165501804,0.375467,2479.6,2479.1,0.3112]
[1748165502001,4.024,2479.5,2479.1,0.3112]
[1748165502992,4.024,2479.4,2479.1,0.3112]
[1748165504269,4.024,2479.3,2479.1,0.3112]
[1748165505976,0.55,2479.2,2479.0,4.548]
[1748165506215,0.55,2479.2,2479.1,4.539]
[1748165507417,10.13,2479.7,2479.2,0.3112]
[1748165507819,4.024,2479.7,2479.2,0.3112]
[1748165508118,4.024,2479.7,2479.3,0.3112]
[1748165508322,4.024,2479.7,2479.3,0.69583086]
[1748165508487,4.024,2479.7,2479.4,0.3112]
[1748165509620,4.024,2479.7,2479.5,0.38463086]
[1748165509829,4.024,2479.7,2479.6,0.3112]
[1748165510600,12.13722645,2480.4,2479.6,0.3112]
[1748165511019,4.024,2480.3,2479.6,0.84930889]
[1748165511334,2.00722645,2480.4,2479.8,0.3112]
[1748165511640,2.05108225,2480.8,2480.1,0.3112]
[1748165512198,2.05108225,2480.8,2480.2,0.38463086]
[1748165512399,2.05108225,2480.8,2480.3,0.3112]
[1748165513448,2.05108225,2480.8,2480.4,0.69583086]
[1748165513613,2.05108225,2480.8,2480.5,8.69]
[1748165513819,2.05108225,2480.8,2480.6,4.537]
[1748165514127,4.023,2480.7,2480.6,4.537]
[1748165515020,4.573,2480.7,2480.6,4.537]
[1748165515338,4.573,2480.7,2480.5,8.69]
[1748165515339,0.55,2480.6,2480.5,8.69]
[1748165515638,4.573,2480.6,2480.5,13.227]
[1748165517434,4.9679915,2480.6,2480.5,13.227]
[1748165520445,4.9669915,2480.6,2480.5,13.227]
[1748165520819,5.7677915,2480.6,2480.5,13.227]
[1748165521021,5.7677915,2480.6,2480.5,8.69]
[1748165521211,5.7677915,2480.6,2480.5,13.227]
[1748165521421,0.8008,2480.3,2479.7,8.689]
[1748165521617,0.55,2480.0,2479.7,8.689]
[1748165521851,1.3508,2479.8,2479.7,8.689]
[1748165522053,1.40121646,2479.8,2479.7,13.226]
[1748165522619,1.40121646,2479.8,2479.7,8.689]
[1748165522840,1.40121646,2479.8,2479.7,13.226]
[1748165523043,2.73473049,2479.8,2479.7,13.226]
[1748165523733,2.68431403,2479.8,2479.7,13.226]
[1748165524523,2.73473192,2479.8,2479.7,13.226]
[1748165524734,6.70731403,2479.8,2479.7,13.226]
[1748165525060,5.3738,2479.8,2479.7,13.226]
[1748165526461,1.3508,2479.8,2479.7,13.226]
[1748165526765,5.3738,2479.8,2479.7,13.226]
[1748165527257,11.4808,2479.8,2479.7,4.538]
[1748165527467,14.153,2479.8,2479.7,13.229]
[1748165527662,14.153,2479.8,2479.7,13.5402]
[1748165528169,4.023,2479.8,2479.7,13.5402]
[1748165529364,4.023,2479.8,2479.7,13.22]
[1748165530776,0.55,2480.1,2479.7,13.22]
[1748165531083,10.8935,2480.5,2479.7,13.22]
[1748165531084,4.023,2480.0,2479.7,13.22]
[1748165531239,0.60040764,2479.9,2479.7,13.22]
[1748165531577,0.55,2479.9,2479.8,4.529]
[1748165531778,0.55,2479.9,2479.7,8.691]
[1748165532077,1.3596,2479.9,2479.8,4.529]
[1748165533504,1.3596,2479.9,2479.7,8.691]
[1748165533655,1.3596,2479.9,2479.8,4.529]
[1748165534486,3.7746,2479.8,2479.7,13.22]
[1748165534851,25.63101121,2479.9,2478.3,0.47941629]
[1748165534852,0.55,2479.5,2478.8,8.691]
[1748165535197,0.55,2479.1,2478.9,4.529]
[1748165535399,0.55,2479.1,2479.0,4.529]
[1748165535585,14.703,2479.1,2479.0,4.529]
[1748165535781,16.2511,2479.1,2479.0,4.529]
[1748165537293,12.2281,2479.1,2479.0,4.529]
[1748165537494,10.13,2479.1,2479.0,4.529]
[1748165537684,4.023,2479.1,2479.0,4.529]
[1748165538265,4.023,2479.1,2479.0,4.53]
[1748165538489,4.573,2479.1,2479.0,4.53]
[1748165539414,0.55,2479.1,2479.0,4.53]
[1748165539568,4.574,2479.1,2479.0,4.53]
[1748165540803,4.024,2479.1,2479.0,4.53]
[1748165541102,4.024,2479.1,2479.0,4.8412]
[1748165541708,10.13,2479.5,2479.0,4.8412]
[1748165542094,4.024,2479.4,2479.0,4.8412]
[1748165542407,0.55,2479.3,2479.0,4.8412]
[1748165542897,0.55,2479.4,2479.0,4.8412]
[1748165543079,4.024,2479.2,2479.0,4.8412]
[1748165543814,4.024,2479.1,2479.0,4.8412]
[1748165544180,10.13,2479.5,2479.0,5.31353957]
[1748165544382,4.574,2479.4,2479.0,4.8412]
[1748165544703,0.05041618,2479.3,2479.1,4.53]
[1748165544877,4.574,2479.4,2479.0,0.3112]
[1748165545080,4.574,2479.4,2479.1,4.53]
[1748165545279,6.8565,2479.4,2478.9,8.691]
[1748165545605,2.8325,2479.4,2479.0,4.53]
[1748165545795,4.024,2479.3,2479.0,4.53]
[1748165547606,0.55,2479.2,2478.9,8.691]
[1748165547831,10.68,2479.2,2479.1,4.53]
[1748165548020,13.19579279,2479.2,2479.1,4.53]
[1748165548517,15.98571272,2479.2,2479.1,4.53]
[1748165549278,0.55,2479.0,2478.9,8.691]
[1748165549500,13.3861,2479.0,2478.9,13.221]
[1748165549675,16.5619912,2479.0,2478.9,13.221]
[1748165550884,16.5619912,2479.0,2478.9,4.53]
[1748165552641,12.5379912,2479.0,2478.9,4.53]
[1748165552824,16.5629912,2479.0,2478.9,4.53]
[1748165553032,11.9879912,2479.0,2478.9,4.53]
[1748165553204,3.1758912,2479.0,2478.9,4.53]
[1748165553407,4.39991993,2479.0,2478.9,4.53]
[1748165553835,4.94991993,2479.0,2478.9,4.53]
[1748165554203,4.575,2479.0,2478.9,4.53]
[1748165555736,0.55,2479.0,2478.9,4.53]
[1748165555941,4.575,2479.0,2478.9,4.53]
[1748165556743,0.55,2479.0,2478.9,4.53]
[1748165556942,4.575,2479.0,2478.9,4.53]
[1748165557427,0.55,2478.9,2478.1,0.3312]
[1748165557742,0.55,2478.7,2478.3,8.694]
[1748165557939,4.025,2478.6,2478.3,8.694]
[1748165559043,0.55,2478.5,2478.3,8.694]
[1748165559402,0.55,2478.5,2478.4,4.525]
[1748165559937,1.0075,2478.5,2478.3,8.694]
[1748165560143,1.0075,2478.5,2478.4,4.525]
[1748165560840,5.0325,2478.5,2478.4,4.525]
[1748165561142,4.575,2478.5,2478.4,4.525]
[1748165561638,0.55,2478.4,2478.3,8.694]
[1748165561840,0.55,2478.4,2478.3,13.219]
[1748165564011,4.575,2478.4,2478.3,13.219]
[1748165564834,0.55,2478.4,2478.3,13.219]
[1748165565145,4.025,2478.4,2478.3,13.5302]
[1748165565941,4.025,2478.4,2478.3,13.219]
[1748165566144,4.575,2478.4,2478.3,13.219]
[1748165567418,5.0325,2478.4,2478.3,13.219]
[1748165572427,5.0325,2478.4,2478.3,8.694]
[1748165572626,5.0325,2478.4,2478.3,13.219]
[1748165572627,15.1625,2478.4,2478.3,13.219]
[1748165573031,15.5373524,2478.4,2478.3,13.219]
[1748165574150,15.74748578,2478.4,2478.3,13.219]
[1748165574557,1.3029,2478.3,2478.1,0.02]
[1748165574770,4.62645111,2478.2,2478.1,0.02]
[1748165575054,31.43191472,2478.2,2478.1,4.545]
[1748165575229,31.38146361,2478.2,2478.1,4.545]
[1748165575436,34.98534817,2478.2,2478.1,4.545]
[1748165576254,37.40034817,2478.2,2478.1,4.545]
[1748165577230,33.37434817,2478.2,2478.1,4.545]
[1748165577418,37.40034817,2478.2,2478.1,4.545]
[1748165580061,37.40034817,2478.2,2478.1,4.546]
[1748165580255,41.63634817,2478.2,2478.1,4.546]
[1748165580458,37.40034817,2478.2,2478.1,4.546]
[1748165581343,8.55,2478.0,2477.5,8.696]
[1748165581541,8.55,2478.0,2477.6,4.526]
[1748165581542,0.55,2477.8,2477.6,4.526]
[1748165583448,0.55,2477.7,2477.6,4.526]
[1748165583763,4.577,2477.7,2477.6,4.526]
[1748165584148,10.11,2478.1,2477.6,4.526]
[1748165584350,10.11,2478.1,2477.8,0.3112]
[1748165584665,4.027,2478.0,2477.8,0.3112]
[1748165587985,4.027,2478.2,2477.8,0.3112]
[1748165588271,0.55,2478.4,2477.8,0.3112]
[1748165588272,0.21007646,2478.6,2477.8,0.3112]
[1748165588479,4.027,2478.3,2477.8,0.3112]
[1748165588690,0.21007646,2478.6,2477.9,0.3112]
[1748165588979,0.21007646,2478.6,2478.0,0.53810889]
[1748165589182,4.026,2478.9,2478.1,0.3112]
[1748165590154,0.21005178,2479.3,2478.3,0.3112]
[1748165590388,4.026,2479.1,2478.6,0.3112]
[1748165590584,0.9526,2479.0,2478.6,0.3112]
[1748165590859,0.55,2479.2,2478.6,0.3112]
[1748165591059,0.21005178,2479.3,2478.6,0.3112]
[1748165591257,4.576,2479.2,2478.6,0.3112]
[1748165593204,4.576,2479.2,2478.7,4.519]
[1748165593988,0.55,2479.0,2478.8,4.519]
[1748165597018,10.11,2479.2,2478.8,4.519]
[1748165597317,4.575,2479.1,2478.9,0.3112]
[1748165597613,0.55,2479.1,2478.9,0.3112]
[1748165597777,4.575,2479.1,2478.9,0.3112]
[1748165598469,10.11,2479.2,2478.9,0.3112]
[1748165598671,0.21005737,2479.6,2479.0,0.3112]
[1748165598879,4.025,2479.5,2479.1,8.695]
[1748165599184,4.025,2479.5,2479.2,0.3112]
[1748165599594,0.21005737,2479.6,2479.2,0.3112]
[1748165599794,4.025,2479.4,2479.2,0.3112]
[1748165601769,0.60041696,2479.3,2479.1,8.695]
[1748165602102,0.55,2479.3,2479.2,4.518]
[1748165604662,4.575,2479.3,2479.2,4.518]
[1748165604987,4.025,2479.3,2479.2,4.8292]
[1748165605198,0.21005737,2479.6,2479.2,4.8292]
[1748165605383,4.025,2479.5,2479.2,4.8292]
[1748165606707,0.55,2479.4,2479.3,4.518]
[1748165608770,0.55,2479.4,2479.1,8.695]
[1748165608966,0.55,2479.4,2479.2,4.518]
[1748165611500,0.55,2479.4,2479.1,8.695]
[1748165611702,0.55,2479.4,2479.3,4.517]
[1748165613504,4.024,2479.4,2479.3,4.517]
[1748165615012,0.55,2479.5,2479.3,4.517]
[1748165615216,4.024,2479.4,2479.3,4.517]
[1748165616275,0.98865737,2479.6,2479.3,4.517]
[1748165616480,4.574,2479.5,2479.3,4.8282]
[1748165617008,0.55,2479.5,2479.3,4.8282]
[1748165617179,4.574,2479.4,2479.3,4.8282]
[1748165617803,4.574,2479.4,2479.3,4.517]
[1748165619295,0.55,2479.3,2479.1,8.695]
[1748165619495,0.55,2479.3,2479.2,4.512]
[1748165622108,0.92649469,2479.3,2479.2,4.512]
[1748165623214,0.55,2479.3,2479.2,4.512]
[1748165624415,10.66,2479.3,2479.2,4.512]
[1748165624797,12.50496991,2479.3,2479.2,4.512]
[1748165625607,14.51056991,2479.3,2479.2,4.512]
[1748165625813,14.134,2479.3,2479.2,4.512]
[1748165626022,14.684,2479.3,2479.2,4.512]
[1748165630946,15.5113,2479.3,2479.2,4.512]
[1748165631113,15.88802719,2479.3,2479.2,4.512]
[1748165631307,17.47682991,2479.3,2479.2,4.512]
[1748165633139,13.45282991,2479.3,2479.2,4.512]
[1748165633437,17.47682991,2479.3,2479.2,4.512]
[1748165638659,10.48672719,2479.3,2479.2,4.8232]
[1748165638809,14.51172719,2479.3,2479.2,4.8232]
[1748165639018,15.06172719,2479.3,2479.2,4.8232]
[1748165639210,14.51172719,2479.3,2479.2,4.8232]
[1748165639514,15.06172719,2479.3,2479.2,4.512]
[1748165639717,16.76862255,2479.3,2479.2,4.512]
[1748165642434,0.55,2479.2,2479.1,8.695]
[1748165642630,0.55,2479.2,2479.1,13.207]
[1748165643221,4.574,2479.2,2479.1,13.207]
[1748165645426,11.81689536,2479.3,2479.1,13.207]
[1748165645427,10.11,2479.3,2479.1,13.5182]
[1748165645621,4.024,2479.2,2479.1,13.5182]
[1748165645942,4.574,2479.2,2479.1,13.5182]
[1748165646144,0.37664905,2479.5,2479.1,13.5182]
[1748165646351,4.024,2479.4,2479.1,13.5182]
[1748165646943,0.37664905,2479.5,2479.1,13.5182]
[1748165647142,4.024,2479.4,2479.1,13.5182]
[1748165647455,4.024,2479.4,2479.2,4.512]
[1748165648027,0.55,2479.5,2479.3,0.3112]
[1748165648347,4.024,2479.4,2479.3,0.3112]
[1748165648543,2.21728382,2479.6,2479.3,0.3112]
[1748165648746,4.024,2479.4,2479.3,0.3112]
[1748165650072,4.574,2479.4,2479.1,8.695]
[1748165650224,4.574,2479.4,2479.3,4.504]
[1748165651831,4.574,2479.4,2479.1,8.695]
[1748165652036,0.55,2479.4,2479.3,4.504]
[1748165652222,0.21005737,2479.6,2479.3,4.8152]
[1748165652423,4.024,2479.5,2479.3,4.8152]
[1748165652733,10.11,2479.8,2479.4,0.3112]
[1748165652933,4.024,2479.7,2479.4,0.3112]
[1748165654516,0.55,2479.6,2479.4,0.3112]
[1748165654790,4.024,2479.5,2479.4,0.3112]
[1748165655009,4.024,2479.5,2479.4,4.8152]
[1748165655529,4.024,2479.5,2479.4,4.504]
[1748165656016,4.024,2479.5,2479.1,9.0062]
[1748165656215,4.024,2479.5,2479.4,4.504]
[1748165656457,4.574,2479.5,2479.4,4.504]
[1748165656642,0.55,2479.4,2479.1,8.695]
[1748165656850,0.55,2479.4,2479.2,4.504]
[1748165657021,0.55,2479.4,2479.1,8.695]
[1748165657225,0.55,2479.4,2479.3,4.504]
[1748165658027,1.3694,2479.4,2479.3,4.504]
[1748165658333,2.28961944,2479.4,2479.3,4.504]
[1748165659462,0.55,2479.2,2479.1,8.695]
[1748165659667,4.574,2479.2,2479.1,13.199]
[1748165659869,4.94983759,2479.2,2479.1,13.199]
[1748165660287,5.71633759,2479.2,2479.1,13.199]
[1748165660434,7.35845219,2479.2,2479.1,13.199]
[1748165662066,7.35845219,2479.2,2479.1,8.695]
[1748165662276,17.51888063,2479.2,2479.1,13.199]
[1748165662427,17.46845219,2479.2,2479.1,13.199]
[1748165663156,17.46845219,2479.2,2477.9,0.3112]
[1748165663470,0.55,2478.6,2478.1,0.3112]
[1748165663647,0.55,2478.4,2478.1,0.3112]
[1748165666336,0.55,2478.4,2478.0,4.504]
[1748165667674,0.55,2478.4,2478.1,8.694]
[1748165668572,10.66,2478.4,2478.1,8.694]
[1748165668773,12.1284,2478.4,2478.1,8.694]
[1748165669240,10.11,2478.4,2478.1,8.694]
[1748165669444,4.025,2478.3,2478.1,8.694]
[1748165669979,10.11,2478.4,2478.2,0.3112]
[1748165670203,4.025,2478.3,2478.2,0.3112]
[1748165673105,4.025,2478.3,2478.2,4.8162]
[1748165673615,4.025,2478.3,2478.1,8.694]
[1748165673616,0.55,2478.2,2478.1,8.694]
[1748165673910,0.55,2478.2,2478.1,13.199]
[1748165674716,0.55,2478.2,2478.1,8.694]
[1748165674869,0.55,2478.2,2478.1,13.199]
[1748165675297,10.66,2478.2,2478.1,13.199]
[1748165675485,12.35263,2478.2,2478.1,13.199]
[1748165676024,10.66,2478.2,2478.1,13.199]
[1748165676173,14.685,2478.2,2478.1,13.199]
[1748165677221,14.135,2478.2,2478.1,13.199]
[1748165679443,10.11,2478.2,2478.1,13.199]
[1748165679644,14.135,2478.2,2478.1,13.5102]
[1748165680252,10.11,2478.2,2478.1,13.5102]
[1748165680550,4.025,2478.3,2478.1,13.5102]
[1748165681812,4.025,2478.3,2478.1,9.0052]
[1748165682016,4.025,2478.3,2478.2,4.499]
[1748165682017,4.575,2478.3,2478.2,4.499]
[1748165686477,4.025,2478.3,2478.2,4.499]
[1748165686610,4.025,2478.3,2478.2,4.8102]
[1748165691066,4.025,2478.3,2478.2,4.499]
[1748165691567,4.575,2478.3,2478.2,4.499]
[1748165697464,4.575,2478.3,2478.1,8.694]
[1748165697698,0.55,2478.2,2478.1,8.694]
[1748165697974,1.7985,2478.2,2478.1,13.193]
[1748165698134,11.9085,2478.2,2478.1,13.193]
[1748165698636,11.1175,2478.2,2478.1,13.193]
[1748165698835,14.685,2478.2,2478.1,13.193]
[1748165700593,10.11,2478.2,2478.1,13.193]
[1748165700797,14.136,2478.2,2478.1,13.193]
[1748165701387,14.686,2478.2,2478.1,8.694]
[1748165701612,14.686,2478.2,2478.1,13.193]
[1748165702987,14.136,2478.2,2478.1,13.5042]
[1748165704220,4.026,2478.2,2478.1,13.5042]
[1748165704914,4.026,2478.2,2478.1,13.88847205]
[1748165706695,4.026,2478.2,2478.1,13.57727205]
[1748165710129,4.576,2478.2,2478.1,13.57727205]
[1748165710277,5.0336,2478.2,2478.1,13.57727205]
[1748165710972,5.0336,2478.2,2478.1,13.193]
[1748165712009,5.0336,2478.2,2478.1,8.694]
[1748165712414,15.9148,2478.2,2478.1,13.186]
[1748165713678,16.29140507,2478.2,2478.1,13.186]
[1748165714027,6.18140507,2478.2,2478.1,13.186]
[1748165714697,6.18140507,2478.2,2478.1,8.694]
[1748165715037,0.55,2477.7,2477.1,0.12]
[1748165715326,0.55,2477.5,2477.2,4.492]
[1748165715509,0.55,2477.3,2477.2,4.492]
[1748165715827,4.576,2477.3,2477.2,4.492]
[1748165716030,5.3972,2477.3,2477.2,4.492]
[1748165716699,5.3972,2477.3,2477.1,0.12]
[1748165716899,1.3712,2477.2,2477.1,0.12]
[1748165717105,1.96539659,2477.2,2477.1,4.612]
[1748165718803,1.96539659,2477.2,2477.1,0.12]
[1748165719134,17.52602387,2477.2,2477.1,0.12]
[1748165719300,17.47554831,2477.2,2477.1,0.12]
[1748165719498,17.85141297,2477.2,2477.1,0.12]
[1748165719913,10.34126125,2477.2,2477.1,0.12]
[1748165720424,13.99139659,2477.2,2477.1,0.12]
[1748165720601,5.99139659,2477.2,2477.1,0.12]
[1748165721124,5.99239659,2477.2,2477.1,0.12]
[1748165723702,13.50254831,2477.2,2477.1,0.12]
[1748165723901,1.3304,2476.9,2476.7,4.494]
[1748165724108,2.21445517,2476.8,2476.7,4.494]
[1748165724308,5.3574,2476.8,2476.7,4.494]
[1748165725422,0.55,2476.7,2476.1,0.02]
[1748165725623,0.55,2476.7,2476.2,4.494]
[1748165726807,0.55,2476.5,2476.2,4.494]
[1748165727303,0.55,2476.6,2476.2,4.494]
[1748165727505,1.08584,2476.6,2476.1,0.02]
[1748165727815,1.08584,2476.6,2476.3,4.495]
[1748165728627,0.05047741,2476.5,2476.3,4.495]
[1748165728829,1.08584,2476.6,2476.1,0.02]
[1748165728830,0.55,2476.3,2476.1,0.02]
[1748165729013,0.55,2476.3,2476.2,4.495]
[1748165729219,5.72019,2476.3,2476.2,4.495]
[1748165729543,5.72019,2476.3,2476.1,0.02]
[1748165729705,5.72019,2476.3,2476.2,4.495]
[1748165731942,1.69219,2476.3,2476.2,4.495]
[1748165732106,5.72019,2476.3,2476.2,4.495]
[1748165733438,15.83019,2476.3,2476.2,4.495]
[1748165736235,15.83019,2476.3,2476.2,4.496]
[1748165738043,11.80219,2476.3,2476.2,4.496]
[1748165738350,15.83119,2476.3,2476.2,4.496]
[1748165739460,15.83119,2476.3,2476.1,0.02]
[1748165739663,14.689,2476.3,2476.2,4.496]
[1748165739972,15.5083,2476.3,2476.1,0.02]
[1748165740137,15.5083,2476.3,2476.2,4.496]
[1748165742054,9.3693,2476.2,2476.1,0.02]
[1748165742248,9.3693,2476.2,2476.1,4.511]
[1748165742249,22.63614517,2476.2,2476.1,4.511]
[1748165743460,23.01136848,2476.2,2476.1,4.511]
[1748165743967,23.01136848,2476.2,2476.1,4.491]
[1748165744167,1.3693,2476.1,2476.0,8.697]
[1748165744325,15.61248857,2476.1,2476.0,8.697]
[1748165744531,15.61248857,2476.1,2476.0,13.188]
[1748165744730,18.21233685,2476.1,2476.0,13.188]
[1748165745066,18.58756016,2476.1,2476.0,13.188]
[1748165746554,18.79780599,2476.1,2476.0,13.188]
[1748165747267,21.21280599,2476.1,2476.0,13.188]
[1748165747675,24.97383721,2476.1,2476.0,13.188]
[1748165748029,0.55,2475.9,2475.2,0.4112]
[1748165748333,1.3201,2475.7,2475.3,4.492]
[1748165748546,0.55,2475.5,2475.3,4.492]
[1748165748748,4.58,2475.4,2475.3,4.492]
[1748165748948,4.58,2475.4,2475.2,0.3612]
[1748165749342,0.7701,2475.7,2475.2,0.3612]
[1748165749343,4.58,2475.3,2475.2,0.3612]
[1748165752436,0.55,2475.2,2475.0,0.3612]
[1748165753770,0.55,2475.2,2474.2,0.53810889]
[1748165753977,0.55,2475.2,2474.7,0.3612]
[1748165754489,0.55,2475.2,2474.4,0.3612]
[1748165755154,19.8125747,2475.2,2474.1,0.02]
[1748165756080,15.8425747,2475.2,2474.1,0.02]
[1748165756378,19.60360592,2475.2,2474.1,0.02]
[1748165757374,27.60360592,2475.2,2474.1,0.02]
[1748165757540,30.40976651,2475.2,2474.1,8.727]
[1748165757745,34.17777997,2475.2,2475.0,4.493]
[1748165758463,34.17777997,2475.2,2474.9,4.493]
[1748165758863,8.55,2475.0,2474.1,8.727]
[1748165759065,1.3268,2474.8,2474.2,4.493]
[1748165759282,0.55,2474.4,2474.2,4.493]
[1748165759480,4.581,2474.4,2474.2,4.493]
[1748165759796,0.55,2474.2,2474.1,8.727]
[1748165759994,0.55,2474.2,2474.1,13.22]
[1748165760602,0.7648,2474.2,2474.1,13.22]
[1748165760812,1.3148,2474.2,2474.1,13.22]
[1748165761150,1.71688866,2474.2,2474.1,13.22]
[1748165761468,11.52103023,2474.2,2474.1,13.22]
[1748165761853,7.55203023,2474.2,2474.1,13.22]
[1748165762148,2.09266336,2474.2,2474.1,13.22]
[1748165762453,4.9567747,2474.2,2474.1,13.22]
[1748165762876,4.9567747,2474.2,2474.1,8.727]
[1748165762877,5.36325843,2474.2,2474.1,8.727]
[1748165763155,14.12805843,2474.2,2474.1,0.02]
[1748165763351,10.09705843,2474.2,2474.1,0.02]
[1748165763550,15.89166874,2474.2,2474.1,0.02]
[1748165763777,16.10182798,2474.2,2474.1,0.02]
[1748165764491,16.10182798,2474.2,2474.1,4.514]
[1748165765303,12.06982798,2474.2,2474.1,4.514]
[1748165765488,3.51982798,2474.2,2474.1,4.514]
[1748165765689,2.75502798,2474.2,2474.1,4.514]
[1748165765880,10.97802531,2474.2,2474.1,4.514]
[1748165766079,10.02154158,2474.2,2474.1,4.514]
[1748165766396,10.36138234,2474.2,2474.1,4.495]
[1748165766599,0.55,2474.1,2472.4,0.40027911]
[1748165766785,10.76077409,2474.2,2472.4,0.40027911]
[1748165766786,0.55,2473.9,2473.2,4.495]
[1748165766984,0.55,2473.7,2473.2,4.495]
[1748165767167,0.55,2473.5,2473.3,4.495]
[1748165767591,0.54361605,2473.5,2473.3,4.495]
[1748165768269,0.54361605,2473.5,2473.4,4.495]
[1748165769127,4.033,2473.5,2473.4,4.495]
[1748165769415,4.033,2473.5,2473.2,0.347]
[1748165769568,4.583,2473.5,2473.2,0.347]
[1748165769773,0.55,2473.4,2473.2,0.347]
[1748165769976,0.55,2473.4,2473.3,4.495]
[1748165770604,0.55,2474.0,2473.3,4.842]
[1748165771033,0.55,2473.8,2473.3,4.842]
[1748165771398,1.3764,2473.8,2473.3,0.347]
[1748165771629,0.55,2473.6,2473.4,4.495]
[1748165772596,0.55,2473.4,2473.1,0.467]
[1748165772802,0.55,2473.4,2473.2,4.491]
[1748165773250,0.55,2473.5,2473.1,0.467]
[1748165773452,0.55,2473.5,2473.3,4.491]
[1748165773657,0.55,2473.6,2473.3,4.491]
[1748165773951,0.55,2473.4,2473.3,4.491]
[1748165775521,4.583,2473.5,2473.4,0.347]
[1748165776020,9.99,2474.3,2473.4,0.347]
[1748165776021,4.033,2473.7,2473.4,0.347]
[1748165776222,0.55,2473.6,2473.4,0.347]
[1748165776418,4.033,2473.7,2473.4,0.347]
[1748165776619,0.55,2473.6,2473.5,4.491]
[1748165777056,0.55,2473.6,2473.1,0.12]
[1748165777057,0.55,2473.4,2473.1,0.12]
[1748165777444,0.55,2473.4,2473.2,4.491]
[1748165777758,9.99,2473.3,2473.2,4.491]
[1748165777962,10.54,2473.3,2473.2,4.491]
[1748165778838,11.67333,2473.3,2473.2,4.491]
[1748165779450,0.55,2473.2,2473.1,0.12]
[1748165779764,0.55,2473.2,2473.1,4.611]
[1748165780762,4.583,2473.2,2473.1,4.611]
[1748165781367,9.99,2473.3,2473.2,0.347]
[1748165781538,12.584,2473.3,2473.2,0.347]
[1748165781730,8.0,2473.3,2473.2,0.347]
[1748165781930,4.034,2473.3,2473.2,0.347]
[1748165782432,4.584,2473.3,2473.2,0.347]
[1748165782949,12.584,2473.3,2473.2,4.492]
[1748165783337,0.55,2473.2,2473.1,0.12]